[Event "Early-Titled-Tuesday-Blitz-February-06-2024"]
[Site "Chess.com"]
[Date "2024.02.06"]
[Round "6"]
[White "Genghis_K"]
[Black "Vaibhavraut99"]
[Result "1-0"]
[WhiteElo "2911"]
[BlackElo "2726"]
[TimeControl "180+1"]
[EndTime "9:08:15 PST"]
[Termination "Genghis_K won by resignation"]

1. e4 {[%clk 0:02:50]} 1... c5 {[%clk 0:02:59.9]} 2. Nf3 {[%clk 0:02:50.6]} 2...
e6 {[%clk 0:02:59.8]} 3. c3 {[%clk 0:02:49.9]} 3... Nf6 {[%clk 0:02:59.8]} 4. e5
{[%clk 0:02:50.4]} 4... Nd5 {[%clk 0:03:00.2]} 5. d4 {[%clk 0:02:50.8]} 5...
cxd4 {[%clk 0:03:01]} 6. cxd4 {[%clk 0:02:51.1]} 6... d6 {[%clk 0:03:01.5]} 7.
Bc4 {[%clk 0:02:51.7]} 7... Nc6 {[%clk 0:03:00.6]} 8. O-O {[%clk 0:02:52.2]}
8... Be7 {[%clk 0:03:01]} 9. Qe2 {[%clk 0:02:52.7]} 9... O-O {[%clk 0:03:00.6]}
10. Rd1 {[%clk 0:02:53.3]} 10... Bd7 {[%clk 0:02:59.7]} 11. Bd2 {[%clk
0:02:53.6]} 11... Ndb4 {[%clk 0:02:44.5]} 12. exd6 {[%clk 0:02:45.6]} 12... Bxd6
{[%clk 0:02:44.4]} 13. Nc3 {[%clk 0:02:45.4]} 13... Nc2 {[%clk 0:02:26.3]} 14.
Bg5 {[%clk 0:02:35.6]} 14... N2xd4 {[%clk 0:02:25.6]} 15. Bxd8 {[%clk
0:02:30.6]} 15... Nxe2+ {[%clk 0:02:14.1]} 16. Bxe2 {[%clk 0:02:30.2]} 16...
Bxh2+ {[%clk 0:02:12.9]} 17. Kxh2 {[%clk 0:02:28.1]} 17... Rfxd8 {[%clk
0:02:13.8]} 18. Ne4 {[%clk 0:02:23.5]} 18... Nb4 {[%clk 0:02:04.7]} 19. Ne5
{[%clk 0:02:18.9]} 19... Be8 {[%clk 0:02:00]} 20. Nc3 {[%clk 0:02:12.3]} 20...
f6 {[%clk 0:01:55]} 21. Nc4 {[%clk 0:02:12.3]} 21... Bc6 {[%clk 0:01:50.2]} 22.
Na5 {[%clk 0:02:11.9]} 22... Kf7 {[%clk 0:01:38.5]} 23. Nxc6 {[%clk 0:02:06.1]}
23... Nxc6 {[%clk 0:01:28.1]} 24. Bf3 {[%clk 0:02:05.8]} 24... Ne5 {[%clk
0:01:26.6]} 25. Be2 {[%clk 0:02:00.4]} 25... g5 {[%clk 0:01:21.8]} 26. f3 {[%clk
0:02:00.3]} 26... h5 {[%clk 0:01:17.9]} 27. Kg3 {[%clk 0:02:00.9]} 27... h4+
{[%clk 0:01:17.9]} 28. Kf2 {[%clk 0:02:01.6]} 28... a6 {[%clk 0:01:11.9]} 29.
Ne4 {[%clk 0:02:01.8]} 29... Ke7 {[%clk 0:01:11.8]} 30. Rac1 {[%clk 0:01:57.6]}
30... Rac8 {[%clk 0:01:09.7]} 31. Nc3 {[%clk 0:01:49.2]} 31... b5 {[%clk
0:01:04.2]} 32. a3 {[%clk 0:01:48.7]} 32... f5 {[%clk 0:00:55.6]} 33. Ke3 {[%clk
0:01:37.9]} 33... Ng6 {[%clk 0:00:44.7]} 34. Bf1 {[%clk 0:01:32]} 34... Nf4
{[%clk 0:00:40.1]} 35. Rxd8 {[%clk 0:01:25.2]} 35... Rxd8 {[%clk 0:00:39.5]} 36.
Rd1 {[%clk 0:01:25.1]} 36... Rc8 {[%clk 0:00:36.6]} 37. Kf2 {[%clk 0:01:19.1]}
37... Rc7 {[%clk 0:00:32.1]} 38. g3 {[%clk 0:01:18.4]} 38... hxg3+ {[%clk
0:00:33]} 39. Kxg3 {[%clk 0:01:19.3]} 39... Nh5+ {[%clk 0:00:33.4]} 40. Kf2
{[%clk 0:01:19.7]} 40... Nf4 {[%clk 0:00:34]} 41. Ke3 {[%clk 0:01:19.1]} 41...
Rc8 {[%clk 0:00:29.4]} 42. Rd4 {[%clk 0:01:12.4]} 42... Rh8 {[%clk 0:00:27.5]}
43. a4 {[%clk 0:01:09.5]} 43... bxa4 {[%clk 0:00:24.6]} 44. Rxa4 {[%clk
0:01:08.5]} 44... Rh2 {[%clk 0:00:22.4]} 45. Be2 {[%clk 0:01:02.6]} 45... Rh1
{[%clk 0:00:20.5]} 46. Rxa6 {[%clk 0:01:00.9]} 46... Ng2+ {[%clk 0:00:18.5]} 47.
Kd4 {[%clk 0:00:55.7]} 47... Nf4 {[%clk 0:00:18.3]} 48. Bc4 {[%clk 0:00:55.2]}
48... Re1 {[%clk 0:00:14.4]} 49. b4 {[%clk 0:00:53.1]} 49... e5+ {[%clk
0:00:11.1]} 50. Kc5 {[%clk 0:00:53.4]} 50... g4 {[%clk 0:00:12]} 51. fxg4 {[%clk
0:00:53.3]} 51... fxg4 {[%clk 0:00:12.9]} 52. Nd5+ {[%clk 0:00:53.8]} 52... Kd7
{[%clk 0:00:05.6]} 53. Nf6+ {[%clk 0:00:48.6]} 53... Kc7 {[%clk 0:00:05.8]} 54.
Nxg4 {[%clk 0:00:48]} 54... e4 {[%clk 0:00:06.4]} 55. Ra7+ {[%clk 0:00:45.4]}
55... Kb8 {[%clk 0:00:05.8]} 56. Rf7 {[%clk 0:00:45.8]} 56... Nd3+ {[%clk
0:00:04.4]} 57. Bxd3 {[%clk 0:00:44.8]} 57... exd3 {[%clk 0:00:05.3]} 58. Rd7
{[%clk 0:00:44.5]} 58... Rd1 {[%clk 0:00:05.9]} 59. Nf2 {[%clk 0:00:42.4]} 59...
Rc1+ {[%clk 0:00:04.6]} 60. Kb5 {[%clk 0:00:43]} 60... Rc2 {[%clk 0:00:02.7]}
61. Nxd3 {[%clk 0:00:43.2]} 61... Rd2 {[%clk 0:00:03.3]} 62. Nc5 {[%clk
0:00:43.5]} 1-0

[Event "Early-Titled-Tuesday-Blitz-February-06-2024"]
[Site "Chess.com"]
[Date "2024.02.06"]
[Round "6"]
[White "bulletteemo"]
[Black "Evgeny81"]
[Result "1-0"]
[WhiteElo "2553"]
[BlackElo "2699"]
[TimeControl "180+1"]
[EndTime "9:08:19 PST"]
[Termination "bulletteemo won on time"]

1. e4 {[%clk 0:02:54.2]} 1... c5 {[%clk 0:02:58.5]} 2. Nf3 {[%clk 0:02:54.1]}
2... Nc6 {[%clk 0:02:58.5]} 3. d4 {[%clk 0:02:53.2]} 3... cxd4 {[%clk
0:02:59.4]} 4. Nxd4 {[%clk 0:02:54]} 4... Nf6 {[%clk 0:02:59.9]} 5. Nc3 {[%clk
0:02:54.3]} 5... Rb8 {[%clk 0:03:00.2]} 6. Be3 {[%clk 0:02:35]} 6... d6 {[%clk
0:02:57.3]} 7. Bc4 {[%clk 0:02:28]} 7... Bd7 {[%clk 0:02:55.1]} 8. Qe2 {[%clk
0:02:08.8]} 8... Nxd4 {[%clk 0:02:44.9]} 9. Bxd4 {[%clk 0:02:08.1]} 9... b5
{[%clk 0:02:45.4]} 10. Bxb5 {[%clk 0:01:47.1]} 10... Rxb5 {[%clk 0:02:43.8]} 11.
Nxb5 {[%clk 0:01:46.1]} 11... Qa5+ {[%clk 0:02:43.8]} 12. Nc3 {[%clk 0:01:45.4]}
12... e5 {[%clk 0:02:41.1]} 13. Be3 {[%clk 0:01:39.6]} 13... Nxe4 {[%clk
0:02:40.4]} 14. Bd2 {[%clk 0:01:07.4]} 14... Nxd2 {[%clk 0:02:34.6]} 15. Qxd2
{[%clk 0:01:08.3]} 15... Be7 {[%clk 0:02:24.4]} 16. O-O {[%clk 0:01:04.4]} 16...
O-O {[%clk 0:02:21.2]} 17. Rfd1 {[%clk 0:00:59.9]} 17... Qc5 {[%clk 0:02:00]}
18. Nd5 {[%clk 0:00:51.6]} 18... Bh4 {[%clk 0:01:57.2]} 19. b4 {[%clk
0:00:33.7]} 19... Qc4 {[%clk 0:01:49.4]} 20. Ne3 {[%clk 0:00:33.6]} 20... Qe4
{[%clk 0:01:33.2]} 21. Qxd6 {[%clk 0:00:30]} 21... Be6 {[%clk 0:01:32.9]} 22. b5
{[%clk 0:00:24.4]} 22... h5 {[%clk 0:01:23.6]} 23. Qd3 {[%clk 0:00:21.6]} 23...
Qa4 {[%clk 0:01:01.8]} 24. c4 {[%clk 0:00:21.7]} 24... Bg5 {[%clk 0:00:57]} 25.
Qb3 {[%clk 0:00:22]} 25... Qa5 {[%clk 0:00:55.5]} 26. Nd5 {[%clk 0:00:22.1]}
26... Rc8 {[%clk 0:00:50.7]} 27. Qg3 {[%clk 0:00:20.2]} 27... Bd8 {[%clk
0:00:45.2]} 28. Qxe5 {[%clk 0:00:19.3]} 28... Rxc4 {[%clk 0:00:44.9]} 29. Rac1
{[%clk 0:00:17.7]} 29... Rxc1 {[%clk 0:00:40.8]} 30. Rxc1 {[%clk 0:00:18.6]}
30... Qxa2 {[%clk 0:00:40.8]} 31. Ne3 {[%clk 0:00:18.3]} 31... Bb6 {[%clk
0:00:27.7]} 32. Qxh5 {[%clk 0:00:16.7]} 32... Qb2 {[%clk 0:00:22.9]} 33. Rd1
{[%clk 0:00:16.5]} 33... Bb3 {[%clk 0:00:20.6]} 34. Re1 {[%clk 0:00:16.2]} 34...
Qd2 {[%clk 0:00:19.6]} 35. Qe2 {[%clk 0:00:14.9]} 35... Qd4 {[%clk 0:00:16]} 36.
Nf5 {[%clk 0:00:14.9]} 36... Qf6 {[%clk 0:00:12.9]} 37. Ne7+ {[%clk 0:00:14.1]}
37... Kf8 {[%clk 0:00:11.7]} 38. Nc6 {[%clk 0:00:13.6]} 38... Kg8 {[%clk
0:00:08.9]} 39. h3 {[%clk 0:00:13.4]} 39... Bc4 {[%clk 0:00:07.4]} 40. Qe8+
{[%clk 0:00:13.4]} 40... Kh7 {[%clk 0:00:07.3]} 41. Qe4+ {[%clk 0:00:13.9]}
41... g6 {[%clk 0:00:07.6]} 42. Qf3 {[%clk 0:00:12.6]} 42... Qxf3 {[%clk
0:00:05.1]} 43. gxf3 {[%clk 0:00:13.4]} 43... Bxb5 {[%clk 0:00:05.7]} 44. Ne5
{[%clk 0:00:13.7]} 44... Kg7 {[%clk 0:00:05.9]} 45. Kg2 {[%clk 0:00:13.7]} 45...
a6 {[%clk 0:00:04.9]} 46. Rc1 {[%clk 0:00:12.5]} 46... Bd4 {[%clk 0:00:04.9]}
47. Ng4 {[%clk 0:00:11.7]} 47... Bb2 {[%clk 0:00:04.5]} 48. Rc7 {[%clk
0:00:11.5]} 48... Bd4 {[%clk 0:00:03.2]} 49. h4 {[%clk 0:00:11.2]} 49... Bb2
{[%clk 0:00:02.8]} 50. Ne3 {[%clk 0:00:11.4]} 50... Bd4 {[%clk 0:00:02.7]} 51.
Nd5 {[%clk 0:00:11.7]} 51... Be5 {[%clk 0:00:02.7]} 52. Re7 {[%clk 0:00:11.4]}
52... Bd4 {[%clk 0:00:02.4]} 53. Kg3 {[%clk 0:00:10.8]} 53... a5 {[%clk
0:00:02.2]} 54. Nf4 {[%clk 0:00:07.1]} 1-0

[Event "Early-Titled-Tuesday-Blitz-February-06-2024"]
[Site "Chess.com"]
[Date "2024.02.06"]
[Round "6"]
[White "nikitadovbnya2008"]
[Black "sonicdravise"]
[Result "1-0"]
[WhiteElo "2296"]
[BlackElo "2606"]
[TimeControl "180+1"]
[EndTime "9:08:19 PST"]
[Termination "nikitadovbnya2008 won by checkmate"]

1. e4 {[%clk 0:02:29.6]} 1... g6 {[%clk 0:02:59.8]} 2. d4 {[%clk 0:02:29.3]}
2... Bg7 {[%clk 0:03:00.3]} 3. Nc3 {[%clk 0:02:29.8]} 3... d6 {[%clk 0:03:00.2]}
4. f4 {[%clk 0:02:26.9]} 4... a6 {[%clk 0:03:00.3]} 5. Nf3 {[%clk 0:02:26.6]}
5... b5 {[%clk 0:03:00.4]} 6. Be3 {[%clk 0:02:24.1]} 6... Nd7 {[%clk 0:02:57.1]}
7. Qd2 {[%clk 0:02:23.3]} 7... Bb7 {[%clk 0:02:47.7]} 8. Bd3 {[%clk 0:02:21.2]}
8... Ngf6 {[%clk 0:02:45.1]} 9. e5 {[%clk 0:02:19.3]} 9... b4 {[%clk 0:02:31.8]}
10. Ne2 {[%clk 0:02:16]} 10... Nd5 {[%clk 0:02:29.9]} 11. Bf2 {[%clk 0:02:12.4]}
11... c5 {[%clk 0:02:23.7]} 12. exd6 {[%clk 0:02:08.2]} 12... exd6 {[%clk
0:02:23]} 13. O-O {[%clk 0:02:08.3]} 13... O-O {[%clk 0:02:20.9]} 14. Bc4 {[%clk
0:02:04.3]} 14... N5b6 {[%clk 0:01:38.2]} 15. b3 {[%clk 0:01:30.4]} 15... d5
{[%clk 0:01:28.3]} 16. dxc5 {[%clk 0:01:28.7]} 16... dxc4 {[%clk 0:01:27.2]} 17.
cxb6 {[%clk 0:01:24]} 17... Bxa1 {[%clk 0:01:26.8]} 18. Rxa1 {[%clk 0:01:23.6]}
18... Bxf3 {[%clk 0:01:10.4]} 19. gxf3 {[%clk 0:01:23.1]} 19... Qf6 {[%clk
0:00:46.3]} 20. Bd4 {[%clk 0:01:07.1]} 20... Qc6 {[%clk 0:00:34.5]} 21. Ng3
{[%clk 0:00:51.4]} 21... Nxb6 {[%clk 0:00:28.5]} 22. f5 {[%clk 0:00:46.1]} 22...
Rad8 {[%clk 0:00:21.8]} 23. Qh6 {[%clk 0:00:33.4]} 23... Rxd4 {[%clk 0:00:03.7]}
24. Nh5 {[%clk 0:00:32.5]} 24... gxh5 {[%clk 0:00:03.1]} 25. Qxc6 {[%clk
0:00:26.2]} 25... Nd7 {[%clk 0:00:03.6]} 26. Qh6 {[%clk 0:00:22]} 26... Kh8
{[%clk 0:00:02.1]} 27. Kh1 {[%clk 0:00:16.1]} 27... Rg8 {[%clk 0:00:02.7]} 28.
Rg1 {[%clk 0:00:14.5]} 28... Rxg1+ {[%clk 0:00:02.2]} 29. Kxg1 {[%clk
0:00:15.4]} 29... c3 {[%clk 0:00:01.8]} 30. Qc6 {[%clk 0:00:13.3]} 30... Rd1+
{[%clk 0:00:01.1]} 31. Kg2 {[%clk 0:00:13.4]} 31... Rd2+ {[%clk 0:00:02]} 32.
Kg3 {[%clk 0:00:13.6]} 32... Kg7 {[%clk 0:00:02.9]} 33. Kf4 {[%clk 0:00:07.1]}
33... a5 {[%clk 0:00:02.9]} 34. Kg5 {[%clk 0:00:06.4]} 34... f6+ {[%clk
0:00:02.1]} 35. Kf4 {[%clk 0:00:06.5]} 35... Ne5 {[%clk 0:00:02]} 36. Qc7+
{[%clk 0:00:06.6]} 36... Rd7 {[%clk 0:00:02]} 37. Qxa5 {[%clk 0:00:05.6]} 37...
Kf7 {[%clk 0:00:02.1]} 38. Qxb4 {[%clk 0:00:05.8]} 38... Rc7 {[%clk 0:00:02.1]}
39. Qb6 {[%clk 0:00:05.4]} 39... Rc6 {[%clk 0:00:02.3]} 40. Qb7+ {[%clk
0:00:05.4]} 40... Kf8 {[%clk 0:00:02.8]} 41. Qb4+ {[%clk 0:00:05.8]} 41... Kf7
{[%clk 0:00:02.8]} 42. Qd4 {[%clk 0:00:06.2]} 42... Rc7 {[%clk 0:00:02.5]} 43.
Qd5+ {[%clk 0:00:06.3]} 43... Ke7 {[%clk 0:00:01.8]} 44. Qe6+ {[%clk 0:00:06.6]}
44... Kd8 {[%clk 0:00:02.5]} 45. Qxf6+ {[%clk 0:00:07.1]} 45... Re7 {[%clk
0:00:03]} 46. Qxe5 {[%clk 0:00:07.7]} 46... Rxe5 {[%clk 0:00:03]} 47. Kxe5
{[%clk 0:00:08.6]} 47... Ke7 {[%clk 0:00:03.8]} 48. f6+ {[%clk 0:00:09]} 48...
Kf7 {[%clk 0:00:04.6]} 49. a4 {[%clk 0:00:09.8]} 49... h4 {[%clk 0:00:05.4]} 50.
a5 {[%clk 0:00:10.7]} 50... h3 {[%clk 0:00:06.3]} 51. a6 {[%clk 0:00:11.2]}
51... h5 {[%clk 0:00:07.1]} 52. a7 {[%clk 0:00:11.9]} 52... h4 {[%clk 0:00:08]}
53. a8=Q {[%clk 0:00:12.6]} 53... Kg6 {[%clk 0:00:08.8]} 54. Qg8+ {[%clk
0:00:12]} 54... Kh6 {[%clk 0:00:09.6]} 55. Kf5 {[%clk 0:00:11.1]} 55... Kh5
{[%clk 0:00:10.5]} 56. Qh8# {[%clk 0:00:11.8]} 1-0

[Event "Early-Titled-Tuesday-Blitz-February-06-2024"]
[Site "Chess.com"]
[Date "2024.02.06"]
[Round "6"]
[White "Gabrielian_Artur"]
[Black "ChainedDowntohell"]
[Result "1-0"]
[WhiteElo "2764"]
[BlackElo "2558"]
[TimeControl "180+1"]
[EndTime "9:08:20 PST"]
[Termination "Gabrielian_Artur won by resignation"]

1. e4 {[%clk 0:03:00.9]} 1... c5 {[%clk 0:02:58.3]} 2. Nf3 {[%clk 0:02:58]} 2...
a6 {[%clk 0:02:57.7]} 3. c4 {[%clk 0:02:56.3]} 3... Nc6 {[%clk 0:02:56.2]} 4. d4
{[%clk 0:02:55.5]} 4... cxd4 {[%clk 0:02:53.8]} 5. Nxd4 {[%clk 0:02:55.7]} 5...
e5 {[%clk 0:02:54.2]} 6. Nf5 {[%clk 0:02:51.8]} 6... d5 {[%clk 0:02:53.8]} 7.
cxd5 {[%clk 0:02:51.3]} 7... Bxf5 {[%clk 0:02:53.4]} 8. exf5 {[%clk 0:02:51.5]}
8... Nd4 {[%clk 0:02:52]} 9. Nc3 {[%clk 0:02:51.1]} 9... Nf6 {[%clk 0:02:44.9]}
10. Bd3 {[%clk 0:02:29.8]} 10... Be7 {[%clk 0:02:37]} 11. O-O {[%clk 0:02:26.2]}
11... O-O {[%clk 0:02:23.3]} 12. Re1 {[%clk 0:02:25.3]} 12... Nxd5 {[%clk
0:02:14.4]} 13. Rxe5 {[%clk 0:02:18.9]} 13... Nb4 {[%clk 0:02:08.9]} 14. Bf1
{[%clk 0:01:42.8]} 14... Bf6 {[%clk 0:02:03.8]} 15. Re4 {[%clk 0:01:42.7]} 15...
Ndc2 {[%clk 0:01:51.4]} 16. Rb1 {[%clk 0:01:39.5]} 16... Qxd1 {[%clk 0:01:34.9]}
17. Nxd1 {[%clk 0:01:39]} 17... Nxa2 {[%clk 0:01:34.8]} 18. Bf4 {[%clk
0:01:05.9]} 18... Rac8 {[%clk 0:01:27.7]} 19. g3 {[%clk 0:01:01.2]} 19... Rfd8
{[%clk 0:01:23.9]} 20. Ne3 {[%clk 0:00:52.4]} 20... Nab4 {[%clk 0:01:05.7]} 21.
Nxc2 {[%clk 0:00:45.1]} 21... Nxc2 {[%clk 0:01:06.6]} 22. Bg2 {[%clk 0:00:42.2]}
22... b5 {[%clk 0:00:59.9]} 23. h4 {[%clk 0:00:40.5]} 23... a5 {[%clk
0:00:55.3]} 24. Bf1 {[%clk 0:00:37.6]} 24... b4 {[%clk 0:00:47.8]} 25. b3 {[%clk
0:00:35.4]} 25... Nd4 {[%clk 0:00:41.6]} 26. Bc4 {[%clk 0:00:24.1]} 26... a4
{[%clk 0:00:39.5]} 27. Be3 {[%clk 0:00:13]} 27... axb3 {[%clk 0:00:19.9]} 28.
Bxb3 {[%clk 0:00:12.9]} 28... Nxb3 {[%clk 0:00:15.6]} 29. Rxb3 {[%clk
0:00:12.7]} 29... Rd1+ {[%clk 0:00:12.6]} 30. Kg2 {[%clk 0:00:12.7]} 30... Bc3
{[%clk 0:00:13.2]} 31. g4 {[%clk 0:00:12.3]} 31... g6 {[%clk 0:00:13.2]} 32. f6
{[%clk 0:00:09.2]} 32... Bxf6 {[%clk 0:00:09.5]} 33. Rbxb4 {[%clk 0:00:09.1]}
33... Rd7 {[%clk 0:00:07.9]} 34. g5 {[%clk 0:00:08.8]} 34... Bg7 {[%clk
0:00:07.3]} 35. Rb5 {[%clk 0:00:08.8]} 35... Rcd8 {[%clk 0:00:06.9]} 36. Rb6
{[%clk 0:00:07.4]} 36... h6 {[%clk 0:00:06.8]} 37. gxh6 {[%clk 0:00:07.1]} 37...
Bf8 {[%clk 0:00:07.2]} 38. Rb5 {[%clk 0:00:07]} 38... Kh7 {[%clk 0:00:07.7]} 39.
h5 {[%clk 0:00:07.4]} 39... Bxh6 {[%clk 0:00:08]} 40. hxg6+ {[%clk 0:00:07.8]}
40... fxg6 {[%clk 0:00:07.4]} 41. Rh4 {[%clk 0:00:08]} 41... g5 {[%clk 0:00:02]}
42. Rxg5 {[%clk 0:00:08.1]} 42... Rd6 {[%clk 0:00:01.3]} 43. Rgh5 {[%clk
0:00:08.3]} 43... Rg8+ {[%clk 0:00:01.9]} 44. Kf1 {[%clk 0:00:08.8]} 44... Rgg6
{[%clk 0:00:02.5]} 45. Ke2 {[%clk 0:00:07.9]} 45... Rde6 {[%clk 0:00:02]} 46.
Rxh6+ {[%clk 0:00:08.1]} 46... Rxh6 {[%clk 0:00:02.3]} 47. Rxh6+ {[%clk
0:00:08.5]} 47... Rxh6 {[%clk 0:00:03.2]} 48. Bxh6 {[%clk 0:00:08.8]} 48... Kxh6
{[%clk 0:00:04.1]} 49. Ke3 {[%clk 0:00:09.2]} 49... Kg6 {[%clk 0:00:03.2]} 50.
Ke4 {[%clk 0:00:09.7]} 50... Kg7 {[%clk 0:00:03.1]} 51. Kf5 {[%clk 0:00:09.9]}
51... Kf7 {[%clk 0:00:03.4]} 52. f4 {[%clk 0:00:10.2]} 52... Kg7 {[%clk
0:00:04.3]} 53. Ke6 {[%clk 0:00:10.7]} 53... Kg8 {[%clk 0:00:03.9]} 54. Ke7
{[%clk 0:00:10.8]} 54... Kg7 {[%clk 0:00:02.2]} 55. f5 {[%clk 0:00:11.7]} 1-0

[Event "Early-Titled-Tuesday-Blitz-February-06-2024"]
[Site "Chess.com"]
[Date "2024.02.06"]
[Round "6"]
[White "kpio91"]
[Black "NikoTheodorou"]
[Result "1-0"]
[WhiteElo "2847"]
[BlackElo "3047"]
[TimeControl "180+1"]
[EndTime "9:08:21 PST"]
[Termination "kpio91 won on time"]

1. e4 {[%clk 0:03:00.9]} 1... b6 {[%clk 0:02:50.6]} 2. Nc3 {[%clk 0:02:53.2]}
2... Bb7 {[%clk 0:02:50]} 3. d4 {[%clk 0:02:53]} 3... d6 {[%clk 0:02:49.4]} 4.
Nf3 {[%clk 0:02:47.9]} 4... Nd7 {[%clk 0:02:49.7]} 5. Bc4 {[%clk 0:02:46]} 5...
e6 {[%clk 0:02:50.1]} 6. O-O {[%clk 0:02:45.6]} 6... g6 {[%clk 0:02:50.7]} 7. a4
{[%clk 0:02:41.6]} 7... a6 {[%clk 0:02:51]} 8. Bg5 {[%clk 0:02:31.2]} 8... Ne7
{[%clk 0:02:50.4]} 9. h3 {[%clk 0:02:28.9]} 9... h6 {[%clk 0:02:50.3]} 10. Bh4
{[%clk 0:02:29]} 10... Bg7 {[%clk 0:02:50.2]} 11. Re1 {[%clk 0:02:28.4]} 11...
g5 {[%clk 0:02:47.6]} 12. Bg3 {[%clk 0:02:28.5]} 12... Ng6 {[%clk 0:02:48.4]}
13. d5 {[%clk 0:01:48.1]} 13... Bxc3 {[%clk 0:02:24.9]} 14. bxc3 {[%clk
0:01:42]} 14... e5 {[%clk 0:02:24.1]} 15. a5 {[%clk 0:01:41.2]} 15... h5 {[%clk
0:02:11.1]} 16. axb6 {[%clk 0:01:36.7]} 16... cxb6 {[%clk 0:02:12]} 17. Be2
{[%clk 0:01:27.4]} 17... Nc5 {[%clk 0:02:06.8]} 18. Nd2 {[%clk 0:01:26.6]} 18...
h4 {[%clk 0:01:49.5]} 19. Bh2 {[%clk 0:01:26.7]} 19... Kf8 {[%clk 0:01:45.6]}
20. Kh1 {[%clk 0:01:13.3]} 20... Bc8 {[%clk 0:01:41.3]} 21. f3 {[%clk
0:01:10.5]} 21... Nf4 {[%clk 0:01:40.4]} 22. Bf1 {[%clk 0:01:08.2]} 22... Bd7
{[%clk 0:01:22.4]} 23. Nb3 {[%clk 0:01:07.8]} 23... Na4 {[%clk 0:01:19.6]} 24.
c4 {[%clk 0:01:05.8]} 24... Qc7 {[%clk 0:01:19.1]} 25. Qd2 {[%clk 0:01:05.2]}
25... Kg7 {[%clk 0:01:16.2]} 26. Bg1 {[%clk 0:01:04.8]} 26... Rhc8 {[%clk
0:01:15.5]} 27. Bf2 {[%clk 0:01:01]} 27... f6 {[%clk 0:01:14.2]} 28. Reb1 {[%clk
0:01:00.7]} 28... b5 {[%clk 0:01:07.3]} 29. Na5 {[%clk 0:00:52.7]} 29... Rab8
{[%clk 0:00:59]} 30. cxb5 {[%clk 0:00:51]} 30... axb5 {[%clk 0:00:59]} 31. c4
{[%clk 0:00:43.6]} 31... b4 {[%clk 0:00:59.6]} 32. Nb3 {[%clk 0:00:36.7]} 32...
Nc3 {[%clk 0:00:59.2]} 33. Rc1 {[%clk 0:00:36.2]} 33... Ra8 {[%clk 0:00:58.6]}
34. c5 {[%clk 0:00:34.7]} 34... Ba4 {[%clk 0:00:55.8]} 35. cxd6 {[%clk
0:00:22.1]} 35... Qxd6 {[%clk 0:00:56.7]} 36. Qb2 {[%clk 0:00:22.5]} 36... Bxb3
{[%clk 0:00:31]} 37. Qxb3 {[%clk 0:00:22]} 37... Kg6 {[%clk 0:00:28.1]} 38. Qb2
{[%clk 0:00:18.3]} 38... Rab8 {[%clk 0:00:23.2]} 39. Ra6 {[%clk 0:00:16.5]}
39... Qd8 {[%clk 0:00:20.9]} 40. Rca1 {[%clk 0:00:13.1]} 40... Nh5 {[%clk
0:00:17.9]} 41. Kg1 {[%clk 0:00:08.1]} 41... Ng3 {[%clk 0:00:17.8]} 42. Bd3
{[%clk 0:00:08.4]} 42... Qe7 {[%clk 0:00:15.2]} 43. Ra7 {[%clk 0:00:08.4]} 43...
Rb7 {[%clk 0:00:14.1]} 44. d6 {[%clk 0:00:07.9]} 44... Qd7 {[%clk 0:00:14]} 45.
Rxb7 {[%clk 0:00:07.2]} 45... Qxb7 {[%clk 0:00:14.9]} 46. Ra7 {[%clk 0:00:07.5]}
46... Qb8 {[%clk 0:00:09.1]} 47. d7 {[%clk 0:00:05]} 47... Rd8 {[%clk
0:00:08.7]} 48. Qb3 {[%clk 0:00:04.8]} 48... Qd6 {[%clk 0:00:08.2]} 49. Qc4
{[%clk 0:00:03.5]} 49... Nh5 {[%clk 0:00:02]} 50. Bc2 {[%clk 0:00:02.7]} 50...
Nf4 {[%clk 0:00:02.2]} 51. Bb3 {[%clk 0:00:02.5]} 51... Rxd7 {[%clk 0:00:01.6]}
52. Qg8+ {[%clk 0:00:02.3]} 52... Kh6 {[%clk 0:00:02.3]} 53. Qh8+ {[%clk
0:00:02.6]} 53... Kg6 {[%clk 0:00:03]} 54. Qe8+ {[%clk 0:00:02.9]} 54... Kh6
{[%clk 0:00:02.4]} 55. Rxd7 {[%clk 0:00:03.1]} 1-0

[Event "Early-Titled-Tuesday-Blitz-February-06-2024"]
[Site "Chess.com"]
[Date "2024.02.06"]
[Round "6"]
[White "Jumbo"]
[Black "Statham_01"]
[Result "0-1"]
[WhiteElo "2851"]
[BlackElo "2571"]
[TimeControl "180+1"]
[EndTime "9:08:22 PST"]
[Termination "Statham_01 won on time"]

1. d4 {[%clk 0:02:54.6]} 1... Nf6 {[%clk 0:02:58.2]} 2. Nf3 {[%clk 0:02:55.1]}
2... e6 {[%clk 0:02:56.1]} 3. Bf4 {[%clk 0:02:55.5]} 3... d5 {[%clk 0:02:53.4]}
4. e3 {[%clk 0:02:55.8]} 4... c5 {[%clk 0:02:54]} 5. Nbd2 {[%clk 0:02:52.9]}
5... Nc6 {[%clk 0:02:53.9]} 6. c3 {[%clk 0:02:51.4]} 6... Bd6 {[%clk 0:02:54.2]}
7. Bg3 {[%clk 0:02:51.1]} 7... O-O {[%clk 0:02:54.1]} 8. Bd3 {[%clk 0:02:50.1]}
8... Re8 {[%clk 0:02:53.6]} 9. dxc5 {[%clk 0:02:50.2]} 9... Bxc5 {[%clk
0:02:52.7]} 10. e4 {[%clk 0:02:50.8]} 10... e5 {[%clk 0:02:39.8]} 11. O-O {[%clk
0:02:50]} 11... Bg4 {[%clk 0:02:35.2]} 12. exd5 {[%clk 0:02:01]} 12... Qxd5
{[%clk 0:01:41.5]} 13. Bc4 {[%clk 0:01:59.2]} 13... Bxf3 {[%clk 0:01:27.4]} 14.
Bxd5 {[%clk 0:01:58.6]} 14... Bxd1 {[%clk 0:01:27.7]} 15. Bxc6 {[%clk
0:01:59.2]} 15... bxc6 {[%clk 0:01:25.5]} 16. Raxd1 {[%clk 0:01:29.6]} 16... Nd5
{[%clk 0:01:23.7]} 17. Nc4 {[%clk 0:01:09.1]} 17... f6 {[%clk 0:01:17.7]} 18.
Na5 {[%clk 0:01:09.1]} 18... Rec8 {[%clk 0:01:07.9]} 19. Rfe1 {[%clk 0:01:00]}
19... Rab8 {[%clk 0:00:54.6]} 20. Re2 {[%clk 0:00:59.1]} 20... Rb5 {[%clk
0:00:49.8]} 21. Nb3 {[%clk 0:00:52.6]} 21... Nb6 {[%clk 0:00:35.6]} 22. Rc2
{[%clk 0:00:41.5]} 22... Be7 {[%clk 0:00:33]} 23. c4 {[%clk 0:00:39.3]} 23...
Rb4 {[%clk 0:00:33.4]} 24. Rdc1 {[%clk 0:00:38.5]} 24... Rd8 {[%clk 0:00:31.2]}
25. f3 {[%clk 0:00:38.1]} 25... Na4 {[%clk 0:00:30]} 26. Kf1 {[%clk 0:00:30.3]}
26... Nc5 {[%clk 0:00:29.6]} 27. Na5 {[%clk 0:00:22.2]} 27... Rd6 {[%clk
0:00:23.4]} 28. a3 {[%clk 0:00:11.6]} 28... Ra4 {[%clk 0:00:23]} 29. b4 {[%clk
0:00:10.8]} 29... Nd3 {[%clk 0:00:23.1]} 30. Rd1 {[%clk 0:00:09.3]} 30... Rxa3
{[%clk 0:00:23.3]} 31. c5 {[%clk 0:00:09.9]} 31... Re6 {[%clk 0:00:10.3]} 32.
Rb1 {[%clk 0:00:08.1]} 32... e4 {[%clk 0:00:07]} 33. fxe4 {[%clk 0:00:07.7]}
33... Kf7 {[%clk 0:00:07]} 34. Rc4 {[%clk 0:00:07.3]} 34... g6 {[%clk
0:00:05.2]} 35. h3 {[%clk 0:00:06.1]} 35... f5 {[%clk 0:00:05.5]} 36. exf5
{[%clk 0:00:06]} 36... gxf5 {[%clk 0:00:06.4]} 37. Kg1 {[%clk 0:00:04.7]} 37...
Bg5 {[%clk 0:00:05.9]} 38. Bf2 {[%clk 0:00:04.5]} 38... Nxf2 {[%clk 0:00:05.8]}
39. Kxf2 {[%clk 0:00:05.4]} 39... Ra2+ {[%clk 0:00:05.5]} 40. Kf1 {[%clk
0:00:05.2]} 40... Ree2 {[%clk 0:00:05.9]} 41. Nxc6 {[%clk 0:00:02.7]} 41... Rf2+
{[%clk 0:00:06.1]} 42. Ke1 {[%clk 0:00:03.3]} 42... Rae2+ {[%clk 0:00:05.9]} 43.
Kd1 {[%clk 0:00:03.3]} 43... Rd2+ {[%clk 0:00:05.6]} 44. Ke1 {[%clk 0:00:03.9]}
44... Rxg2 {[%clk 0:00:04.7]} 45. Ne5+ {[%clk 0:00:04.2]} 45... Kg7 {[%clk
0:00:04.3]} 46. Kf1 {[%clk 0:00:04.2]} 46... Rdf2+ {[%clk 0:00:04.1]} 47. Ke1
{[%clk 0:00:04.7]} 47... Be3 {[%clk 0:00:02.9]} 0-1